Cogmind - Beta 12 @@@ ROGUE MODE // 2023.03.08 @ 23:34:45 Player: DreamweaverKara Result: Destroyed self with Mini Grenade Launcher Performance ------------- Evolutions (1) 500 Regions Visited (2) 400 Robots Destroyed (16) 80 Value Destroyed (441) 441 Prototype IDs (0) 0 Alien Tech Used (0) 0 Bonus (0) 0 TOTAL SCORE: 1421 Bonus ------- None Cogmind --------- Core Integrity 0/400 Matter 265/300 Energy 100/100 System Corruption 0% Temperature Cool (0) Movement Core (50) Location -9/Materials Parts ------- > --- POWER (1) -------- (None) > --- PROPULSION (3) --- (None) > --- UTILITY (3) ------ (None) > --- WEAPON (2) ------- Mini Grenade Launcher Mini Grenade Launcher > --- INVENTORY (5) ---- (None) Peak State ------------ > --- POWER ------------ Light Nuclear Core > --- PROPULSION ------- Aluminum Leg Aluminum Leg > --- UTILITY ---------- (None) > --- WEAPON ----------- Mini Grenade Launcher Mini Grenade Launcher > --- INVENTORY -------- (None) [Rating: 9] Favorites ----------- Power Ion Engine Engine Ion Engine Power Core Light Nuclear Core Propulsion Aluminum Leg Treads Light Treads Leg Aluminum Leg Utility Light Armor Plating Device Heat Sink Protection Light Armor Plating Weapon Assault Rifle Energy Gun Medium Laser Energy Cannon Light EM Pulse Cannon Ballistic Gun Assault Rifle Launcher Grenade Launcher Build | -11 -10 -9 ------- Run | Jun Mat Mat Slots Evolved 2 | . . 2 Power . | . . . Propulsion 1 | . . 1 Utility 1 | . . 1 Weapon . | . . . Parts Attached 19 | 3 4 12 Power 2 | 1 . 1 Engine 1 | 1 . . Core 1 | . . 1 Reactor . | . . . Propulsion 6 | 2 . 4 Treads 2 | . . 2 Leg 4 | 2 . 2 Wheel . | . . . Hover . | . . . Flight . | . . . Utility 3 | . 2 1 Device 2 | . 1 1 Storage . | . . . Processor . | . . . Hackware . | . . . Protection 1 | . 1 . Artifact . | . . . Weapon 8 | . 2 6 Energy Gun 1 | . 1 . Energy Cannon 1 | . . 1 Ballistic Gun 3 | . 1 2 Ballistic Cannon . | . . . Launcher 3 | . . 3 Special Weapon . | . . . Impact Weapon . | . . . Slashing Weapon . | . . . Piercing Weapon . | . . . Special Melee Weapon . | . . . Unidentified Prototypes . | . . . Parts Lost 16 | . . 16 Power 2 | . . 2 Propulsion 6 | . . 6 Utility 3 | . . 3 Weapon 5 | . . 5 Highest Loss Streak 9 | . . 9 To Critical Strikes . | . . . Average Slot Usage (%) 59 | . 84 49 Engine 7 | . 14 4 Core 1 | . . 1 Treads 3 | . . 5 Leg 17 | . 28 13 Device 5 | . 4 6 Protection 5 | . 8 3 Energy Gun 6 | . 14 4 Ballistic Gun 9 | . 14 7 Launcher 1 | . . 2 Naked Turns 13 | . . 13 Heaviest Build 15 | 5 13 15 Greatest Support 40 | 20 20 40 Greatest Overweight (x) 3 | . . 3 Average Overweight (x) . | . . . Largest Inventory Capacity 5 | 5 5 5 Average Capacity 5 | 5 5 5 Most Carried 5 | 4 4 5 Average Carried 2 | 2 2 1 Final Capacity 5 | 5 5 5 Final Carried 4 | 4 3 . Class Distribution -------------------- 100% | Mutant Dominant Class ---------------- Mutant | -10/Materials Mutant | -9/Materials Resources | -11 -10 -9 ----------- Run | Jun Mat Mat Matter Collected 396 | 230 39 127 Remotely . | . . . Salvage Created 431 | . 65 366 Parts 25 | . 3 22 Haulers Intercepted . | . . . Recyclers Shooed 1 | . . 1 Parts Field Recycled . | . . . Retrieved Matter . | . . . Parts Self-Destructed . | . . . Prevented . | . . . Kills | -11 -10 -9 ------- Run | Jun Mat Mat Combat Hostiles Destroyed 13 | . 1 12 Melee 1 | . . 1 Guns 6 | . 1 5 AOE 6 | . . 6 Classes Destroyed 6 | . 3 3 Builder 1 | . 1 . Operator 1 | . . 1 Watcher 1 | . 1 . Swarmer 4 | . . 4 Grunt 7 | . 1 6 Sentry 2 | . . 2 Best Kill Streak 5 | . 2 5 Combat Bots Only 5 | . 1 5 Max Kills in Single Turn 2 | . 2 2 Gunslinging . | . . . Exploded 2 | . . 2 Melee 1 | . . 1 Uniques/NPCs Destroyed . | . . . Combat | -11 -10 -9 -------- Run | Jun Mat Mat Damage Taken 1776 | . 161 1615 Core 442 | . 39 403 Absorbed by Shields . | . . . Core Remaining (%) 92 | 100 84 . Volleys Fired 48 | . 8 40 Largest 2 | . 2 2 Hottest 86 | . 70 86 Shots Fired 68 | . 16 52 Gun 58 | . 16 42 Cannon 2 | . . 2 Launcher 8 | . . 8 Special . | . . . Kinetic 45 | . 8 37 Thermal 13 | . 8 5 Explosive 8 | . . 8 Electromagnetic 2 | . . 2 Robot Hit Streak 8 | . 8 7 Robot Miss Streak 1 | . 1 1 Penetration Max . | . . . Secondary Targets 1 | . . 1 Max Gunslinging Chain 1 | . . 1 Shots Hit Robots 51 | . 12 39 Core Hits 28 | . 4 24 Critical Kills 1 | . 1 . Critical Parts Destroyed . | . . . Critical Strikes 2 | . 2 . Burn 1 | . 1 . Destroy 1 | . 1 . Melee Attacks . | . . . Impact . | . . . Slashing . | . . . Piercing . | . . . Sneak Attacks . | . . . Combat Hostiles . | . . . Follow-up Attacks . | . . . Damage Inflicted 986 | . 165 821 Guns 431 | . 153 278 Cannons 42 | . . 42 Explosions 446 | . . 446 Melee . | . . . Ramming 67 | . 12 55 Kinetic 342 | . 89 253 Thermal 89 | . 64 25 Explosive 446 | . . 446 Electromagnetic 42 | . . 42 Impact . | . . . Slashing . | . . . Piercing . | . . . Highest Corruption . | . . . Average Corruption . | . . . Corruption Purged . | . . . Corruption Blocked . | . . . Overload Shots . | . . . Overflow Damage 61 | . . 61 Projectiles 4 | . . 4 Explosions 57 | . . 57 Melee . | . . . Knockbacks . | . . . Impact . | . . . Kinetic . | . . . Secondary . | . . . Self-Inflicted Damage 194 | . . 194 Shots 6 | . . 6 Rammed 6 | . . 6 Targets Rammed 27 | . 1 26 Kicked 21 | . 1 20 Crushed . | . . . Highest Temperature 150 | . 150 72 Average Temperature 45 | . 66 24 Received Heat Transfer 771 | . 93 678 Siege Activations . | . . . Robots Corrupted . | . . . Combat Hostiles . | . . . Parts Fried . | . . . Impact Corruptions . | . . . Robots Melted . | . . . Combat Hostiles . | . . . Parts Melted 1 | . 1 . Heat Transferred 333 | . 259 74 Parts Sabotaged . | . . . Parts Stolen . | . . . Parts Stripped . | . . . Power Chain Reactions . | . . . Missiles Intercepted . | . . . Alert | -11 -10 -9 ------- Run | Jun Mat Mat Peak Influence 333 | . 106 333 Initial 44 | . . 44 Average 141 | . 46 199 Maximum Alert Level 1 | . . 1 Low Security (%) 57 | 100 100 34 Level 1 42 | . . 65 Level 2 . | . . . Level 3 . | . . . Level 4 . | . . . Level 5 . | . . . High Security . | . . . Max Security . | . . . Squads Dispatched 3 | . 1 2 Investigation 1 | . 1 . Extermination . | . . . Reinforcement 2 | . . 2 Assault . | . . . Garrison . | . . . Intercept . | . . . Searches Triggered . | . . . Construction Impeded . | . . . Haulers Reinforced . | . . . Active Scanning Responses . | . . . Cargo Convoy Interrupts . | . . . Stealth | -11 -10 -9 --------- Run | Jun Mat Mat Distress Signals 3 | . 1 2 Communications Jammed . | . . . Distress Signals . | . . . Times Spotted 28 | . 7 21 Peak Tracking Total 10 | . 4 10 Tactical Retreats 4 | . 1 3 Traps | -11 -10 -9 ------- Run | Jun Mat Mat Traps Triggered 1 | . 1 . Indirectly . | . . . Trap Hack Attempts . | . . . Triggered . | . . . Disarmed . | . . . Reprogrammed . | . . . Reused . | . . . Traps Extracted . | . . . Installed . | . . . Triggered . | . . . Machines | -11 -10 -9 ---------- Run | Jun Mat Mat Machines Disabled 1 | . . 1 Max in Single Turn 1 | . . 1 Machines Repaired . | . . . Machines Sabotaged . | . . . Overloaded Fab Kills . | . . . Hacking | -11 -10 -9 --------- Run | Jun Mat Mat Machines Accessed 2 | . 2 . Terminals 2 | . 2 . Fabricators . | . . . Repair Stations . | . . . Recycling Units . | . . . Scanalyzers . | . . . Garrison Access . | . . . Total Hacks 3 | . 3 . Successful 1 | . 1 . Failed 2 | . 2 . Catastrophic . | . . . Database Lockouts . | . . . Manual 1 | . . 1 Terminals 3 | . 3 . Fabricators . | . . . Repair Stations . | . . . Recycling Units . | . . . Scanalyzers . | . . . Garrison Access . | . . . Terminal Hacks 1 | . 1 . Zone Layout 1 | . 1 . Fabricator Hacks . | . . . Repair Station Hacks . | . . . Recycling Unit Hacks . | . . . Scanalyzer . | . . . Garrison Access Hacks . | . . . Unauthorized Hacks . | . . . Terminals . | . . . Fabricators . | . . . Repair Stations . | . . . Recycling Units . | . . . Scanalyzers . | . . . Garrison Access . | . . . Data Cores Recovered . | . . . Used . | . . . Hacking Detections 1 | . 1 . Full Trace Events . | . . . Feedback Events . | . . . Feedback Blocked . | . . . Robot Schematics Acquired . | . . . Robots Built . | . . . Authchips . | . . . Time . | . . . Total Robot Build Rating . | . . . Part Schematics Acquired . | . . . Parts Built . | . . . Authchips . | . . . Time . | . . . Total Part Build Rating . | . . . Parts Repaired . | . . . Time . | . . . Parts Recycled . | . . . Recycled Matter . | . . . Retrieved Matter . | . . . Retrieved Components . | . . . Parts Scanalyzed . | . . . Part Schematics Acquired . | . . . Parts Damaged . | . . . Bothacking | -11 -10 -9 ------------ Run | Jun Mat Mat Used RIF Installer . | . . . Robots Hacked . | . . . Non-combat . | . . . Combat . | . . . Robot Hacks Applied . | . . . Relay Couplers Released . | . . . Fabnet Peak Effective % . | . . . Robots Rewired . | . . . Allies Hacked . | . . . Hacks Repelled . | . . . Allies | -11 -10 -9 -------- Run | Jun Mat Mat Total Allies . | . . . Largest Group . | . . . Highest-Rated Group . | . . . Highest-Rated Ally . | . . . Total Orders . | . . . Ally Attacks . | . . . Total Damage . | . . . Kills . | . . . Allies Corrupted . | . . . Allies Melted . | . . . Intel | -11 -10 -9 ------- Run | Jun Mat Mat Robot Analysis Total . | . . . Derelict Logs Recovered . | . . . Drone Launches . | . . . Drone Recoveries . | . . . Exploration | -11 -10 -9 ------------- Run | Jun Mat Mat Turns Passed 622 | 55 162 405 Spaces Moved 357 | 39 109 209 Core 23 | 9 . 14 Treads 36 | . . 36 Legs 298 | 30 109 159 Wheels . | . . . Hover . | . . . Flight . | . . . Fastest Speed 50 | 50 120 50 Average Speed 122 | 103 120 126 Slowest Speed 200 | 120 120 200 Overloaded Moves . | . . . Propulsion Burnouts . | . . . Robots Hopped . | . . . Cave-ins Triggered . | . . . Exploration Rate (%) 16 | 3 23 23 Regions Visited 2 Branch Regions . Pre-discovered Areas . | . . . Known Exits Taken . | . . . Unknown Exits Taken 2 | 1 1 . Scrap Searched . | . . . Spaces Dug 4 | . . 4 Terrain Destroyed 61 | . . 61 Melee . | . . . Projectile . | . . . AOE 61 | . . 61 Terrain Rammed . | . . . Walls Destroyed . | . . . Machines Disabled . | . . . Actions | -11 -10 -9 --------- Run | Jun Mat Mat Total 479 | 53 124 302 Wait 11 | 5 . 6 Move 355 | 38 108 209 Hop . | . . . Pick Up 18 | 7 3 8 Fast Attach . | . . . Attach 19 | 3 4 12 Detach 1 | . . 1 Swap . | . . . Drop . | . . . Fire 48 | . 8 40 Melee . | . . . Ram 6 | . . 6 Kick 21 | . 1 20 Crush . | . . . Escape Stasis . | . . . Rewire . | . . . Trap . | . . . Miscellaneous . | . . . Route ------- -11/Junkyard -10/Materials -9/Materials History --------- Turn | Location | Event 6 | -11/Junkyard | Discovered new exit (range 15) 56 | -11/Junkyard | Entered Materials 203 | -10/Materials | Discovered new exit (range 14) 218 | -10/Materials | Entered another Materials area 218 | -9/Materials | Evolved 2 slots: Propulsion x1, Utility x1 312 | -9/Materials | Build established: Mutant 435 | -9/Materials | Lost 9 parts (1p2n3u3w) 467 | -9/Materials | Core integrity fell below 50% 523 | -9/Materials | Core integrity fell below 20% 623 | -9/Materials | Destroyed self with Mini Grenade Launcher Last Messages --------------- 00548_ Kicked G-34 Mercenary. 00549_ G-34 Mercenary destroyed. 00557_ Kicked A-02 Transporter. 00571_ O-16 Technician: "IFF HANDSHAKE FAILED. SECURING TERMINAL." 00574_ O-16 Technician sends out distress signal. 00575_ Kicked A-02 Transporter. 00579_ ALERT: Hostiles spotted, dispatching reinforcements to Terminal M003. 00613_ Acquired Mni. Grenade Launcher. 00615_ Critical hit (Burn: +37). 00615_ Acquired Mni. Grenade Launcher. 00619_ Lgt. Nuclear Core destroyed. 00619_ Destroyed Lgt. Ion Engine. 00619_ O-16 Technician destroyed. 00619_ Terminal disabled. 00619_ Y-45 Defender destroyed. 00619_ Aluminum Leg destroyed. 00619_ Destroyed Aluminum Leg. 00623_ Aluminum Leg destroyed. 00623_ Destroyed Aluminum Leg. Map ----- +----------------------------------------------------+ | ???????? ???????????????# #??????????????????????? | | ????????#???????????????# #??????????????????????? | | ????????????????????????# #??????????????????????? | | ????????????????????????# #??????????????????????? | | ????????????????????????# #??????????????????????? | | ????????????????????????# #??????????????????????? | | ????????????????????????#%#??????????????????????? | | ????????????????????????# #??????????????????????? | | ????????????????????????# #??????????????????????? | | ?????????????????###????#%#??????????????????????? | | ?????????????????# ??# #??????????????????????? | | ?????????????????# ! # #############??????????? | | ?????????????????# + ! ???? | | ?????????????????# """ # ######## ???? | | ?????????????????# """ # #???##???????? "????? | | ?????????????????# """ ?# #???!!?????????????????? | | ??????????????????####??# #??!!??????????????????? | | ?????????????############ #? !???????????????????? | | ?????????? #? ????????????????????? | | ?????????????????### # ????????????????????? | | ???????????????????# # ?????????????????????? | | ??????????????????## = ??????????????????????? | | ?????????????????## *%! ##?????????????????????? | | ?????????????????# [ #?????????????????????? | | ?????????????????# " ]#?????????????????????? | | ?????????????????# " ]@Y ?????????????????????? | | ?????????????????# ]] #????????????????????? | | ?????????????????######## #????????????????????? | | | | | | | | | | | | | | | | | | | | | | | | | | | | | | | | | | | | | | | | | | | | | +----------------------------------------------------+ Best States ------------- Heat Dissipation 38 Energy Generation 14 Energy Capacity 250 Matter Stores 300 Matter Capacity 300 Sight Range 16 Robot Scan Range 14 Terrain Scan Density 10 Armor Coverage 150 Evasion (%) 55 Recoil Reduction 2 Item Schematics ----------------- None Robot Schematics ------------------ None Fabricated ------------ Nothing Alien Tech Used ----------------- None Achievements -------------- None Challenges ------------ None Game ------ Seed CarbideSigixPit Manual? 0 Play Time 00:14:30 Cumulative 13.6 hours Start 2023.03.08 @ 23:23:52 End 2023.03.08 @ 23:34:45 Sessions 1 Manual Loads 0 Difficulty Rogue Special Mode None Game No. 52 Rogue 52 Adventurer 0 Explorer 0 Win Type - Total 0 Types 0/0/0/0/0/0/0/0/0 Lore% 12 Gallery% 22 Achievement% 18 Wizard Run 0 Options --------- ASCII 1 Keyboard 0 Movement Mouse Keybinds 0 Fullscreen 2 Font 16/Terminus Map View 76x50 Tactical HUD 1 Map Filters NONE Filters NONE Steam 1 RUN: fcf215d0-0781-4feb-8d8b-8e9f6305b3fd